{"text_format":"1","workbook":"xlsx","n_sheets":2,"sheets":["Timesheet","New Timesheet"],"not_rendered":{"charts":0,"images":0,"macros":1,"external_links":0,"defined_names":4,"comments":0,"pivot_tables":0},"unopened":[],"bounds":{"document_bytes":16777216,"sheet_cells":100000,"rows_first":2000,"rows_last":500,"rows_between":2000,"halvings":0,"cell_chars":16384,"cell_head_chars":4096},"cells_cut":0,"cells_raw":0,"read":"whole","date_system":"1900"}

{"sheet":"Timesheet","index":0,"n_rows":61,"n_cols":19,"rows_kept":61,"cut":false,"hidden":false,"merged":[[3,1,9,19],[11,3,19,19],[32,2,32,3],[32,11,32,12],[33,2,33,3],[33,11,33,12],[24,3,24,5],[26,3,26,5]]}
[null,"Timesheet for activities"]
[]
[]
[null,"Introduction\n\nIn order to be able to charge costs for example EU financed projects, a revisable cost calaculation is required. The purpose of this time study is to estimate how much time is spent on specific animals/cage types/activities relative to total working hours for all the different types of animals/cage types/acitivities that may exist.\nThe time study needs to be completed for at least two different weeks to ensure reliability. If there is a substantial variance between the results of the two weeks, the time study period should be extended in order to secure reliability.\nFurthermore, the time study needs to be revised in case of major changes in animal species, cage types or acitivity.\n\n "]
[]
[]
[]
[]
[]
[]
[]
[null,null,null,"Instruction\nOnly input data in white cells, all colored cells contain necessary calculations / formulas.\n\nBegin by entering the basic information. Continue with writing a description of the activity to be measured, such as cleaning, washing dishes, or any other form of work activity/process to be measured. If additional rows are required, enter them between the existing rows and remember to copy down the necessary functions (colored cells).\n\nTime is registered in full hours and started quarters for each day, as follows:\n1 hour = 1,0; 15 minutes = 0,25; 30 minutes = 0,5; 45 minutes = 0,75"]
[]
[]
[]
[]
[]
[]
[]
[]
[]
[null,"BASIC INFORMATION"]
[]
[null,"Year"]
[null,"Contact"]
[]
[null,"Other info. (ex. animal species, equipment type)"]
[]
[]
[]
[null,"TIME STUDY WEEK 1",null,null,null,null,null,null,null,null,"TIME STUDY WEEK 2"]
[]
[null,null,"Time study week",null,null,null,null,null,null,null,null,"Time study week"]
[]
[]
[null,"Description","Other info","Mon","Tue","Wed","Thur","Fri","Sat","Sun","Mon","Tue","Wed","Thur","Fri","Sat","Sun","Total","Comment"]
[null,null,null,null,null,null,null,null,null,null,null,null,null,null,null,null,null,{"$f":"SUM(D37:Q37)","v":0}]
[null,null,null,null,null,null,null,null,null,null,null,null,null,null,null,null,null,{"$f":"SUM(D38:Q38)","v":0}]
[null,null,null,null,null,null,null,null,null,null,null,null,null,null,null,null,null,0]
[null,null,null,null,null,null,null,null,null,null,null,null,null,null,null,null,null,0]
[null,null,null,null,null,null,null,null,null,null,null,null,null,null,null,null,null,0]
[null,null,null,null,null,null,null,null,null,null,null,null,null,null,null,null,null,0]
[null,null,null,null,null,null,null,null,null,null,null,null,null,null,null,null,null,0]
[null,null,null,null,null,null,null,null,null,null,null,null,null,null,null,null,null,0]
[null,null,null,null,null,null,null,null,null,null,null,null,null,null,null,null,null,0]
[null,null,null,null,null,null,null,null,null,null,null,null,null,null,null,null,null,0]
[null,null,null,null,null,null,null,null,null,null,null,null,null,null,null,null,null,0]
[null,null,null,null,null,null,null,null,null,null,null,null,null,null,null,null,null,0]
[null,null,null,null,null,null,null,null,null,null,null,null,null,null,null,null,null,0]
[null,null,null,null,null,null,null,null,null,null,null,null,null,null,null,null,null,0]
[null,null,null,null,null,null,null,null,null,null,null,null,null,null,null,null,null,0]
[null,null,null,null,null,null,null,null,null,null,null,null,null,null,null,null,null,0]
[null,"Total time",null,{"$f":"SUM(D37:D52)","v":0},0,0,0,0,0,0,0,0,0,0,0,0,0,{"$f":"SUM(R37:R52)","v":0}]
[]
[]
[]
[]
[null,"Employee",null,null,null,null,null,null,null,null,null,null,null,null,null,null,null,null,"Manager"]
[]
[]
[null,"Signature",null,null,null,null,null,null,null,null,null,null,null,null,null,null,null,null,"Signature"]

{"sheet":"New Timesheet","index":1,"n_rows":61,"n_cols":19,"rows_kept":61,"cut":false,"hidden":true,"merged":[[33,2,33,3],[33,11,33,12],[3,1,9,19],[11,3,19,19],[24,3,24,5],[26,3,26,5],[32,2,32,3],[32,11,32,12]]}
[null,"Timesheet for activities"]
[]
[]
[null,"Introduction\n\nIn order to be able to charge costs for example EU financed projects, a revisable cost calaculation is required. The purpose of this time study is to estimate how much time is spent on specific animals/cage types/activities relative to total working hours for all the different types of animals/cage types/acitivities that may exist.\nThe time study needs to be completed for at least two different weeks to ensure reliability. If there is a substantial variance between the results of the two weeks, the time study period should be extended in order to secure reliability.\nFurthermore, the time study needs to be revised in case of major changes in animal species, cage types or acitivity.\n\n "]
[]
[]
[]
[]
[]
[]
[]
[null,null,null,"Instruction\nOnly input data in white cells, all colored cells contain necessary calculations / formulas.\n\nBegin by entering the basic information. Continue with writing a description of the activity to be measured, such as cleaning, washing dishes, or any other form of work activity/process to be measured. If additional rows are required, enter them between the existing rows and remember to copy down the necessary functions (colored cells).\n\nTime is registered in full hours and started quarters for each day, as follows:\n1 hour = 1,0; 15 minutes = 0,25; 30 minutes = 0,5; 45 minutes = 0,75"]
[]
[]
[]
[]
[]
[]
[]
[]
[]
[null,"BASIC INFORMATION"]
[]
[null,"Year"]
[null,"Contact"]
[]
[null,"Other info. (ex. animal species, equipment type)"]
[]
[]
[]
[null,"TIME STUDY WEEK 1",null,null,null,null,null,null,null,null,"TIME STUDY WEEK 2"]
[]
[null,null,"Time study week",null,null,null,null,null,null,null,null,"Time study week"]
[]
[]
[null,"Description","Other info","Mon","Tue","Wed","Thur","Fri","Sat","Sun","Mon","Tue","Wed","Thur","Fri","Sat","Sun","Total","Comment"]
[null,null,null,null,null,null,null,null,null,null,null,null,null,null,null,null,null,{"$f":"SUM(D37:Q37)","v":0}]
[null,null,null,null,null,null,null,null,null,null,null,null,null,null,null,null,null,{"$f":"SUM(D38:Q38)","v":0}]
[null,null,null,null,null,null,null,null,null,null,null,null,null,null,null,null,null,0]
[null,null,null,null,null,null,null,null,null,null,null,null,null,null,null,null,null,0]
[null,null,null,null,null,null,null,null,null,null,null,null,null,null,null,null,null,0]
[null,null,null,null,null,null,null,null,null,null,null,null,null,null,null,null,null,0]
[null,null,null,null,null,null,null,null,null,null,null,null,null,null,null,null,null,0]
[null,null,null,null,null,null,null,null,null,null,null,null,null,null,null,null,null,0]
[null,null,null,null,null,null,null,null,null,null,null,null,null,null,null,null,null,0]
[null,null,null,null,null,null,null,null,null,null,null,null,null,null,null,null,null,0]
[null,null,null,null,null,null,null,null,null,null,null,null,null,null,null,null,null,0]
[null,null,null,null,null,null,null,null,null,null,null,null,null,null,null,null,null,0]
[null,null,null,null,null,null,null,null,null,null,null,null,null,null,null,null,null,0]
[null,null,null,null,null,null,null,null,null,null,null,null,null,null,null,null,null,0]
[null,null,null,null,null,null,null,null,null,null,null,null,null,null,null,null,null,0]
[null,null,null,null,null,null,null,null,null,null,null,null,null,null,null,null,null,0]
[null,"Total time",null,{"$f":"SUM(D37:D52)","v":0},0,0,0,0,0,0,0,0,0,0,0,0,0,{"$f":"SUM(R37:R52)","v":0}]
[]
[]
[]
[]
[null,"Employee",null,null,null,null,null,null,null,null,null,null,null,null,null,null,null,null,"Manager"]
[]
[]
[null,"Signature",null,null,null,null,null,null,null,null,null,null,null,null,null,null,null,null,"Signature"]